[Event "Titled Tuesday Blitz June 28 Early 2022"]
[White "Flynn, Jacob"]
[Black "Kanyamarala, Tarun"]
[WhiteFideId "2509393"]
[BlackFideId "45004714"]
[WhiteElo "1896"]
[BlackElo "2219"]
[Result "1-0"]
[Round "04"]
[TimeControl "180+1"]
[Date "2022.06.28"]
[WhiteClock "0:00:03"]
[BlackClock "0:00:11"]

1. d4 {[%clk 0:02:04]}  g6 {[%clk 0:02:58]} 2. e4 {[%clk 0:02:03]}  Bg7 {[%clk 0:02:59]} 3. Nf3 {[%clk 0:02:03]}  c6 {[%clk 0:02:57]} 4. Nc3 {[%clk 0:01:54]}  d5 {[%clk 0:02:57]} 5. Be2 {[%clk 0:01:53]}  Bg4 {[%clk 0:02:51]} 6. Be3 {[%clk 0:01:44]}  e6 {[%clk 0:02:37]} 7. O-O {[%clk 0:01:41]}  Ne7 {[%clk 0:02:23]} 8. Qd2 {[%clk 0:01:40]}  O-O {[%clk 0:02:18]} 9. Rad1 {[%clk 0:01:33]}  Nd7 {[%clk 0:02:15]} 10. h3 {[%clk 0:01:25]}  Bxf3 {[%clk 0:02:14]} 11. Bxf3 {[%clk 0:01:26]}  Nb6 {[%clk 0:02:07]} 12. b3 {[%clk 0:01:21]}  dxe4 {[%clk 0:02:05]} 13. Nxe4 {[%clk 0:01:20]}  Nf5 {[%clk 0:02:04]} 14. c3 {[%clk 0:01:12]}  e5 {[%clk 0:01:40]} 15. dxe5 {[%clk 0:01:05]}  Qxd2 {[%clk 0:01:25]} 16. Bxd2 {[%clk 0:01:03]}  Bxe5 {[%clk 0:01:24]} 17. Rfe1 {[%clk 0:00:56]}  Rfe8 {[%clk 0:01:13]} 18. Nc5 {[%clk 0:00:54]}  Rab8 {[%clk 0:01:10]} 19. g3 {[%clk 0:00:42]}  Kf8 {[%clk 0:01:00]} 20. c4 {[%clk 0:00:36]}  Bd6 {[%clk 0:00:57]} 21. Ne4 {[%clk 0:00:36]}  Be7 {[%clk 0:00:55]} 22. Bc3 {[%clk 0:00:35]}  Rbd8 {[%clk 0:00:50]} 23. Kg2 {[%clk 0:00:34]}  Nd7 {[%clk 0:00:45]} 24. h4 {[%clk 0:00:32]}  h5 {[%clk 0:00:38]} 25. b4 {[%clk 0:00:27]}  Nb6 {[%clk 0:00:36]} 26. c5 {[%clk 0:00:22]}  Nd5 {[%clk 0:00:36]} 27. Bd2 {[%clk 0:00:22]}  Nd4 {[%clk 0:00:32]} 28. Bh6+ {[%clk 0:00:18]}  Kg8 {[%clk 0:00:32]} 29. a3 {[%clk 0:00:15]}  Nxf3 {[%clk 0:00:28]} 30. Kxf3 {[%clk 0:00:15]}  f6 {[%clk 0:00:22]} 31. Bf4 {[%clk 0:00:12]}  Nxf4 {[%clk 0:00:20]} 32. Kxf4 {[%clk 0:00:13]}  Kf7 {[%clk 0:00:20]} 33. Kf3 {[%clk 0:00:11]}  Bf8 {[%clk 0:00:15]} 34. Nc3 {[%clk 0:00:07]}  Rxe1 {[%clk 0:00:10]} 35. Rxe1 {[%clk 0:00:08]}  Rd2 {[%clk 0:00:08]} 36. Re2 {[%clk 0:00:07]}  Rd3+ {[%clk 0:00:07]} 37. Re3 {[%clk 0:00:08]}  Rxe3+ {[%clk 0:00:07]} 38. Kxe3 {[%clk 0:00:08]}  a5 {[%clk 0:00:06]} 39. Ke4 {[%clk 0:00:06]}  Ke6 {[%clk 0:00:06]} 40. Ne2 {[%clk 0:00:05]}  f5+ {[%clk 0:00:05]} 41. Kd3 {[%clk 0:00:05]}  Kd5 {[%clk 0:00:05]} 42. Nf4+ {[%clk 0:00:05]}  Ke5 {[%clk 0:00:04]} 43. Nxg6+ {[%clk 0:00:06]}  Kf6 {[%clk 0:00:03]} 44. Nxf8 {[%clk 0:00:07]}  axb4 {[%clk 0:00:03]} 45. axb4 {[%clk 0:00:07]}  f4 {[%clk 0:00:03]} 46. Nd7+ {[%clk 0:00:06]}  Kf5 {[%clk 0:00:03]} 47. Nb6 {[%clk 0:00:03]}  Kg4 {[%clk 0:00:03]} 48. gxf4 {[%clk 0:00:03]}  Kxh4 {[%clk 0:00:03]} 49. Ke2 {[%clk 0:00:02]}  Kh3 {[%clk 0:00:03]} 50. Kf1 {[%clk 0:00:03]}  Kg4 {[%clk 0:00:03]} 51. Kg2 {[%clk 0:00:03]}  Kxf4 {[%clk 0:00:04]} 52. Nc4 {[%clk 0:00:03]}  Ke4 {[%clk 0:00:04]} 53. Nd6+ {[%clk 0:00:03]}  Kd4 {[%clk 0:00:04]} 54. Nxb7 {[%clk 0:00:04]}  Kc4 {[%clk 0:00:05]} 55. Nd8 {[%clk 0:00:05]}  Kxb4 {[%clk 0:00:05]} 56. Nxc6+ {[%clk 0:00:05]}  Kxc5 {[%clk 0:00:06]} 57. Ne5 {[%clk 0:00:06]}  Kd5 {[%clk 0:00:06]} 58. Nf7 {[%clk 0:00:05]}  Ke6 {[%clk 0:00:06]} 59. Ng5+ {[%clk 0:00:06]}  Kf5 {[%clk 0:00:07]} 60. Nh3 {[%clk 0:00:06]}  Kg4 {[%clk 0:00:07]} 61. Ng1 {[%clk 0:00:05]}  Kf4 {[%clk 0:00:08]} 62. Nf3 {[%clk 0:00:04]}  Kg4 {[%clk 0:00:08]} 63. Nh2+ {[%clk 0:00:03]}  Kf4 {[%clk 0:00:08]} 64. Kh3 {[%clk 0:00:02]}  Kg5 {[%clk 0:00:09]} 65. Kg3 {[%clk 0:00:02]}  Kf5 {[%clk 0:00:09]} 66. Kh4 {[%clk 0:00:03]}  Kf4 {[%clk 0:00:09]} 67. Kxh5 {[%clk 0:00:03]}  Ke4 {[%clk 0:00:10]} 68. Kg4 {[%clk 0:00:03]}  Kd3 {[%clk 0:00:11]} 69. f4 {[%clk 0:00:03]} 1-0


[Site "https://www.chess.com"]

[Event "Titled Tuesday Blitz June 28 Early 2022"]
[White "Golubev, Mikhail"]
[Black "Ortega Ruiz, Jose Miguel"]
[WhiteFideId "14100983"]
[BlackFideId "2209713"]
[WhiteElo "2374"]
[BlackElo "2292"]
[Result "1-0"]
[Round "04"]
[TimeControl "180+1"]
[Date "2022.06.28"]
[WhiteClock "0:00:15"]
[BlackClock "0:00:52"]

1. e4 {[%clk 0:03:00]}  c5 {[%clk 0:02:57]} 2. Nf3 {[%clk 0:03:00]}  Nc6 {[%clk 0:02:56]} 3. Nc3 {[%clk 0:02:59]}  Nf6 {[%clk 0:02:56]} 4. Bb5 {[%clk 0:02:57]}  a6 {[%clk 0:02:42]} 5. Bxc6 {[%clk 0:02:55]}  dxc6 {[%clk 0:02:43]} 6. h3 {[%clk 0:02:50]}  g6 {[%clk 0:02:43]} 7. d3 {[%clk 0:02:49]}  Bg7 {[%clk 0:02:44]} 8. Be3 {[%clk 0:02:43]}  Nd7 {[%clk 0:02:44]} 9. Qd2 {[%clk 0:02:42]}  h6 {[%clk 0:02:45]} 10. O-O-O {[%clk 0:02:31]}  e5 {[%clk 0:02:44]} 11. Nh2 {[%clk 0:02:27]}  Qe7 {[%clk 0:02:44]} 12. f4 {[%clk 0:02:18]}  exf4 {[%clk 0:02:42]} 13. Bxf4 {[%clk 0:02:19]}  Nf8 {[%clk 0:02:42]} 14. Ng4 {[%clk 0:02:01]}  Bxg4 {[%clk 0:02:42]} 15. hxg4 {[%clk 0:02:00]}  g5 {[%clk 0:02:43]} 16. Be3 {[%clk 0:01:58]}  O-O-O {[%clk 0:02:38]} 17. Rdf1 {[%clk 0:01:28]}  Ne6 {[%clk 0:02:37]} 18. Rf5 {[%clk 0:01:27]}  c4 {[%clk 0:02:37]} 19. Rhf1 {[%clk 0:01:15]}  Rhf8 {[%clk 0:02:36]} 20. Na4 {[%clk 0:01:06]}  Bd4 {[%clk 0:02:10]} 21. Nb6+ {[%clk 0:01:01]}  Kb8 {[%clk 0:02:01]} 22. Nxc4 {[%clk 0:00:59]}  Bxe3 {[%clk 0:01:45]} 23. Qxe3 {[%clk 0:00:56]}  Nd4 {[%clk 0:01:45]} 24. Rf6 {[%clk 0:00:49]}  Qc5 {[%clk 0:01:38]} 25. Rxf7 {[%clk 0:00:34]}  Rxf7 {[%clk 0:01:36]} 26. Rxf7 {[%clk 0:00:35]}  b5 {[%clk 0:01:36]} 27. Qg3+ {[%clk 0:00:31]}  Ka8 {[%clk 0:01:10]} 28. Qc7 {[%clk 0:00:22]}  Rb8 {[%clk 0:00:58]} 29. b4 {[%clk 0:00:20]}  Ne6 {[%clk 0:00:54]} 30. Qxb8+ {[%clk 0:00:17]}  Kxb8 {[%clk 0:00:52]} 31. bxc5 {[%clk 0:00:17]}  bxc4 {[%clk 0:00:53]} 32. Rf6 {[%clk 0:00:16]}  Nf4 {[%clk 0:00:50]} 33. Rxh6 {[%clk 0:00:16]}  cxd3 {[%clk 0:00:50]} 34. cxd3 {[%clk 0:00:16]}  Nxd3+ {[%clk 0:00:51]} 35. Kc2 {[%clk 0:00:16]}  Nxc5 {[%clk 0:00:52]} 36. e5 {[%clk 0:00:16]}  Kc8 {[%clk 0:00:52]} 37. Rxc6+ {[%clk 0:00:15]} 1-0


[Site "https://www.chess.com"]

[Event "Titled Tuesday Blitz June 28 Early 2022"]
[White "Gubajdullin, Alexei"]
[Black "Fernandez Siles, Luis"]
[WhiteFideId "4141202"]
[BlackFideId "2209420"]
[WhiteElo "2280"]
[BlackElo "2211"]
[Result "1-0"]
[Round "04"]
[TimeControl "180+1"]
[Date "2022.06.28"]
[WhiteClock "0:00:53"]
[BlackClock "0:00:06"]

1. c4 {[%clk 0:03:00]}  Nf6 {[%clk 0:02:58]} 2. Nf3 {[%clk 0:03:00]}  g6 {[%clk 0:02:57]} 3. g3 {[%clk 0:03:00]}  Bg7 {[%clk 0:02:57]} 4. Bg2 {[%clk 0:03:00]}  O-O {[%clk 0:02:57]} 5. O-O {[%clk 0:02:59]}  d5 {[%clk 0:02:55]} 6. cxd5 {[%clk 0:02:58]}  Nxd5 {[%clk 0:02:55]} 7. d4 {[%clk 0:02:56]}  Nb6 {[%clk 0:02:53]} 8. h3 {[%clk 0:02:52]}  Nc6 {[%clk 0:02:53]} 9. e3 {[%clk 0:02:50]}  e5 {[%clk 0:02:47]} 10. dxe5 {[%clk 0:02:49]}  Nxe5 {[%clk 0:02:47]} 11. Nxe5 {[%clk 0:02:49]}  Bxe5 {[%clk 0:02:47]} 12. Qe2 {[%clk 0:02:48]}  c6 {[%clk 0:02:41]} 13. Rd1 {[%clk 0:02:48]}  Qe7 {[%clk 0:02:38]} 14. Nd2 {[%clk 0:02:42]}  Be6 {[%clk 0:02:33]} 15. Nf3 {[%clk 0:02:42]}  Bg7 {[%clk 0:02:33]} 16. Nd4 {[%clk 0:02:42]}  Bd5 {[%clk 0:02:30]} 17. e4 {[%clk 0:02:40]}  Bc4 {[%clk 0:02:22]} 18. Qc2 {[%clk 0:02:41]}  Rad8 {[%clk 0:02:18]} 19. Be3 {[%clk 0:02:40]}  Ba6 {[%clk 0:01:53]} 20. Bf1 {[%clk 0:02:01]}  Bxf1 {[%clk 0:01:43]} 21. Kxf1 {[%clk 0:02:01]}  Qb4 {[%clk 0:01:33]} 22. Nb3 {[%clk 0:01:56]}  Nc4 {[%clk 0:01:05]} 23. Bc5 {[%clk 0:01:54]}  Qb5 {[%clk 0:01:02]} 24. Kg2 {[%clk 0:01:49]}  Nxb2 {[%clk 0:01:02]} 25. Bxf8 {[%clk 0:01:43]}  Rxf8 {[%clk 0:00:38]} 26. Rd7 {[%clk 0:01:42]}  Na4 {[%clk 0:00:30]} 27. Rad1 {[%clk 0:01:41]}  Nc3 {[%clk 0:00:31]} 28. R1d2 {[%clk 0:01:31]}  Qe5 {[%clk 0:00:29]} 29. f4 {[%clk 0:01:22]}  Qxe4+ {[%clk 0:00:28]} 30. Qxe4 {[%clk 0:01:22]}  Nxe4 {[%clk 0:00:29]} 31. Rc2 {[%clk 0:01:21]}  Rb8 {[%clk 0:00:25]} 32. Na5 {[%clk 0:01:19]}  b5 {[%clk 0:00:17]} 33. Nxc6 {[%clk 0:01:18]}  Re8 {[%clk 0:00:15]} 34. Nxa7 {[%clk 0:01:18]}  b4 {[%clk 0:00:15]} 35. Rc8 {[%clk 0:01:16]}  Rxc8 {[%clk 0:00:14]} 36. Nxc8 {[%clk 0:01:16]}  Nc3 {[%clk 0:00:14]} 37. Ra7 {[%clk 0:01:16]}  Bd4 {[%clk 0:00:11]} 38. Ra8 {[%clk 0:01:15]}  Kg7 {[%clk 0:00:11]} 39. Ne7 {[%clk 0:01:14]}  Kf6 {[%clk 0:00:11]} 40. Nc6 {[%clk 0:01:12]}  Bc5 {[%clk 0:00:10]} 41. Ne5 {[%clk 0:01:10]}  h5 {[%clk 0:00:10]} 42. Ra6+ {[%clk 0:01:09]}  Ke7 {[%clk 0:00:10]} 43. Nd3 {[%clk 0:01:05]}  Bd6 {[%clk 0:00:09]} 44. g4 {[%clk 0:01:04]}  hxg4 {[%clk 0:00:08]} 45. hxg4 {[%clk 0:01:05]}  f5 {[%clk 0:00:09]} 46. g5 {[%clk 0:01:04]}  Nd5 {[%clk 0:00:09]} 47. Kf3 {[%clk 0:01:02]}  Nc3 {[%clk 0:00:06]} 48. Ne5 {[%clk 0:01:01]}  Bxe5 {[%clk 0:00:06]} 49. fxe5 {[%clk 0:01:01]}  Ne4 {[%clk 0:00:05]} 50. Kf4 {[%clk 0:00:56]}  Nc5 {[%clk 0:00:06]} 51. Rxg6 {[%clk 0:00:53]}  Nd3+ {[%clk 0:00:06]} 52. Kxf5 {[%clk 0:00:53]} 1-0


[Site "https://www.chess.com"]

[Event "Titled Tuesday Blitz June 28 Early 2022"]
[White "Hamley, Ryan"]
[Black "Dankhazi, Andras"]
[WhiteFideId "30959497"]
[BlackFideId "714267"]
[WhiteElo "2488"]
[BlackElo "2325"]
[Result "0-1"]
[Round "04"]
[TimeControl "180+1"]
[Date "2022.06.28"]
[WhiteClock "0:00:05"]
[BlackClock "0:00:19"]

1. d4 {[%clk 0:02:39]}  e6 {[%clk 0:02:58]} 2. c4 {[%clk 0:02:39]}  b6 {[%clk 0:02:59]} 3. a3 {[%clk 0:02:37]}  Bb7 {[%clk 0:02:59]} 4. Nc3 {[%clk 0:02:38]}  f5 {[%clk 0:02:56]} 5. d5 {[%clk 0:02:36]}  Nf6 {[%clk 0:02:53]} 6. g3 {[%clk 0:02:34]}  Be7 {[%clk 0:02:46]} 7. Bg2 {[%clk 0:02:34]}  O-O {[%clk 0:02:46]} 8. Nf3 {[%clk 0:02:32]}  a5 {[%clk 0:02:38]} 9. O-O {[%clk 0:02:31]}  Na6 {[%clk 0:02:37]} 10. Nd4 {[%clk 0:02:18]}  Nc5 {[%clk 0:02:31]} 11. Rb1 {[%clk 0:02:07]}  exd5 {[%clk 0:02:25]} 12. cxd5 {[%clk 0:01:49]}  g6 {[%clk 0:02:15]} 13. Bh6 {[%clk 0:01:40]}  Re8 {[%clk 0:02:12]} 14. b4 {[%clk 0:01:28]}  axb4 {[%clk 0:02:12]} 15. axb4 {[%clk 0:01:28]}  Nce4 {[%clk 0:02:12]} 16. Nxe4 {[%clk 0:01:28]}  fxe4 {[%clk 0:02:06]} 17. f3 {[%clk 0:01:05]}  Bxd5 {[%clk 0:01:40]} 18. fxe4 {[%clk 0:00:37]}  Bxe4 {[%clk 0:01:39]} 19. Bxe4 {[%clk 0:00:29]}  Nxe4 {[%clk 0:01:40]} 20. Qc2 {[%clk 0:00:28]}  d5 {[%clk 0:01:34]} 21. Nb5 {[%clk 0:00:23]}  Qd7 {[%clk 0:01:11]} 22. Nxc7 {[%clk 0:00:08]}  Rec8 {[%clk 0:00:54]} 23. Qb2 {[%clk 0:00:08]}  Bf6 {[%clk 0:00:33]} 24. Rxf6 {[%clk 0:00:07]}  Qxc7 {[%clk 0:00:30]} 25. Rf4 {[%clk 0:00:04]}  Qc3 {[%clk 0:00:28]} 26. Qxc3 {[%clk 0:00:03]}  Nxc3 {[%clk 0:00:28]} 27. Re1 {[%clk 0:00:02]}  Rc4 {[%clk 0:00:26]} 28. Rf6 {[%clk 0:00:01]}  Ne4 {[%clk 0:00:21]} 29. Rxb6 {[%clk 0:00:01]}  Rcc8 {[%clk 0:00:12]} 30. Rb7 {[%clk 0:00:01]}  Rab8 {[%clk 0:00:12]} 31. Rxb8 {[%clk 0:00:01]}  Rxb8 {[%clk 0:00:13]} 32. Rf1 {[%clk 0:00:02]}  Nc3 {[%clk 0:00:13]} 33. Rf4 {[%clk 0:00:02]}  Nxe2+ {[%clk 0:00:14]} 34. Kf2 {[%clk 0:00:02]}  Nxf4 {[%clk 0:00:14]} 35. Bxf4 {[%clk 0:00:03]}  Rb7 {[%clk 0:00:15]} 36. Ke3 {[%clk 0:00:04]}  Rxb4 {[%clk 0:00:15]} 37. Kd3 {[%clk 0:00:04]}  Re4 {[%clk 0:00:16]} 38. h3 {[%clk 0:00:04]}  Kf7 {[%clk 0:00:17]} 39. h4 {[%clk 0:00:05]}  Ke6 {[%clk 0:00:18]} 40. Bd2 {[%clk 0:00:04]}  h5 {[%clk 0:00:19]} 41. Bf4 {[%clk 0:00:05]}  Kf5 {[%clk 0:00:19]} 0-1


[Site "https://www.chess.com"]

[Event "Titled Tuesday Blitz June 28 Early 2022"]
[White "Horak, Martin"]
[Black "Mitrovic, Darko R"]
[WhiteFideId "367095"]
[BlackFideId "927023"]
[WhiteElo "1997"]
[BlackElo "2150"]
[Result "1-0"]
[Round "04"]
[TimeControl "180+1"]
[Date "2022.06.28"]
[WhiteClock "0:00:17"]
[BlackClock "0:00:04"]

1. e4 {[%clk 0:03:00]}  e6 {[%clk 0:02:59]} 2. Nf3 {[%clk 0:02:53]}  d5 {[%clk 0:02:58]} 3. e5 {[%clk 0:02:53]}  c5 {[%clk 0:02:58]} 4. b4 {[%clk 0:02:54]}  cxb4 {[%clk 0:02:58]} 5. a3 {[%clk 0:02:54]}  bxa3 {[%clk 0:02:58]} 6. d4 {[%clk 0:02:54]}  Nc6 {[%clk 0:02:56]} 7. c3 {[%clk 0:02:54]}  Bd7 {[%clk 0:02:55]} 8. Bd3 {[%clk 0:02:55]}  a6 {[%clk 0:02:54]} 9. Ng5 {[%clk 0:02:55]}  f5 {[%clk 0:02:17]} 10. h4 {[%clk 0:02:11]}  Rc8 {[%clk 0:02:06]} 11. g4 {[%clk 0:02:09]}  h6 {[%clk 0:01:45]} 12. Nxe6 {[%clk 0:02:08]}  Bxe6 {[%clk 0:01:44]} 13. gxf5 {[%clk 0:02:08]}  Bf7 {[%clk 0:01:34]} 14. e6 {[%clk 0:02:08]}  Nf6 {[%clk 0:01:25]} 15. exf7+ {[%clk 0:02:05]}  Kxf7 {[%clk 0:01:25]} 16. Nxa3 {[%clk 0:01:43]}  Bd6 {[%clk 0:01:23]} 17. Kf1 {[%clk 0:01:36]}  Qc7 {[%clk 0:01:07]} 18. Qf3 {[%clk 0:01:33]}  Rhe8 {[%clk 0:01:05]} 19. Qg2 {[%clk 0:01:13]}  Bf4 {[%clk 0:00:54]} 20. Rg1 {[%clk 0:01:08]}  Rg8 {[%clk 0:00:47]} 21. Nc2 {[%clk 0:00:47]}  Bxc1 {[%clk 0:00:43]} 22. Rxc1 {[%clk 0:00:48]}  Na5 {[%clk 0:00:35]} 23. Ne3 {[%clk 0:00:48]}  Nb3 {[%clk 0:00:32]} 24. Rc2 {[%clk 0:00:40]}  Qd7 {[%clk 0:00:25]} 25. Ng4 {[%clk 0:00:37]}  Nxg4 {[%clk 0:00:22]} 26. Qxg4 {[%clk 0:00:38]}  b5 {[%clk 0:00:12]} 27. Qg6+ {[%clk 0:00:25]}  Kf8 {[%clk 0:00:11]} 28. f6 {[%clk 0:00:22]}  Qf7 {[%clk 0:00:09]} 29. fxg7+ {[%clk 0:00:20]}  Rxg7 {[%clk 0:00:09]} 30. Qd6+ {[%clk 0:00:20]}  Kg8 {[%clk 0:00:09]} 31. Rxg7+ {[%clk 0:00:19]}  Kxg7 {[%clk 0:00:09]} 32. f4 {[%clk 0:00:17]}  Rf8 {[%clk 0:00:09]} 33. Rg2+ {[%clk 0:00:16]}  Kh8 {[%clk 0:00:04]} 34. Qxh6+ {[%clk 0:00:16]}  Qh7 {[%clk 0:00:04]} 35. Qxh7# {[%clk 0:00:17]} 1-0


[Site "https://www.chess.com"]

[Event "Titled Tuesday Blitz June 28 Early 2022"]
[White "Hovhannisyan, Robert"]
[Black "Sanchez, Robert"]
[WhiteFideId "13302507"]
[BlackFideId "2034360"]
[WhiteElo "2570"]
[BlackElo "2062"]
[Result "1-0"]
[Round "04"]
[TimeControl "180+1"]
[Date "2022.06.28"]
[WhiteClock "0:00:58"]
[BlackClock "0:01:11"]

1. e4 {[%clk 0:03:00]}  e6 {[%clk 0:03:00]} 2. d4 {[%clk 0:03:00]}  d5 {[%clk 0:03:00]} 3. Nc3 {[%clk 0:03:01]}  Nf6 {[%clk 0:03:01]} 4. Bg5 {[%clk 0:02:59]}  Be7 {[%clk 0:03:00]} 5. e5 {[%clk 0:02:59]}  Nfd7 {[%clk 0:03:01]} 6. h4 {[%clk 0:02:59]}  h6 {[%clk 0:03:00]} 7. Bxe7 {[%clk 0:02:58]}  Qxe7 {[%clk 0:03:01]} 8. f4 {[%clk 0:02:54]}  O-O {[%clk 0:02:56]} 9. Nf3 {[%clk 0:02:52]}  a6 {[%clk 0:02:54]} 10. Qd2 {[%clk 0:02:50]}  c5 {[%clk 0:02:54]} 11. O-O-O {[%clk 0:02:27]}  Nc6 {[%clk 0:02:44]} 12. g4 {[%clk 0:02:25]}  cxd4 {[%clk 0:02:42]} 13. Nxd4 {[%clk 0:02:24]}  f6 {[%clk 0:02:25]} 14. exf6 {[%clk 0:02:16]}  Qxf6 {[%clk 0:02:24]} 15. g5 {[%clk 0:01:59]}  Qxd4 {[%clk 0:02:15]} 16. Qxd4 {[%clk 0:01:58]}  Nxd4 {[%clk 0:02:15]} 17. Rxd4 {[%clk 0:01:59]}  b5 {[%clk 0:01:52]} 18. gxh6 {[%clk 0:01:49]}  gxh6 {[%clk 0:01:51]} 19. Rg1+ {[%clk 0:01:49]}  Kf7 {[%clk 0:01:41]} 20. Rd3 {[%clk 0:01:33]}  Bb7 {[%clk 0:01:31]} 21. Rdg3 {[%clk 0:01:28]}  Rg8 {[%clk 0:01:31]} 22. Rxg8 {[%clk 0:01:18]}  Rxg8 {[%clk 0:01:32]} 23. Rxg8 {[%clk 0:01:18]}  Kxg8 {[%clk 0:01:32]} 24. Ne2 {[%clk 0:01:17]}  e5 {[%clk 0:01:20]} 25. Bh3 {[%clk 0:01:13]}  Nc5 {[%clk 0:01:11]} 26. fxe5 {[%clk 0:01:12]}  Kf7 {[%clk 0:01:12]} 27. Kd2 {[%clk 0:01:03]}  Bc6 {[%clk 0:01:11]} 28. Nd4 {[%clk 0:00:58]}  Bd7 {[%clk 0:01:11]} 29. Bxd7 {[%clk 0:00:58]}  Nxd7 {[%clk 0:01:11]} 30. e6+ {[%clk 0:00:58]} 1-0


[Site "https://www.chess.com"]

[Event "Titled Tuesday Blitz June 28 Early 2022"]
[White "Ianov, Viktor"]
[Black "Oliveira, Jonathan De"]
[WhiteFideId "14102730"]
[BlackFideId "2180820"]
[WhiteElo "2152"]
[BlackElo "2075"]
[Result "1-0"]
[Round "04"]
[TimeControl "180+1"]
[Date "2022.06.28"]
[WhiteClock "0:01:01"]
[BlackClock "0:00:10"]

1. Nf3 {[%clk 0:03:00]}  e6 {[%clk 0:03:00]} 2. g3 {[%clk 0:03:00]}  d5 {[%clk 0:03:01]} 3. Bg2 {[%clk 0:03:00]}  Nf6 {[%clk 0:03:02]} 4. O-O {[%clk 0:03:00]}  Be7 {[%clk 0:03:03]} 5. d3 {[%clk 0:02:58]}  O-O {[%clk 0:03:04]} 6. Nbd2 {[%clk 0:02:58]}  c5 {[%clk 0:03:04]} 7. e4 {[%clk 0:02:58]}  Nc6 {[%clk 0:03:04]} 8. Re1 {[%clk 0:02:58]}  Qc7 {[%clk 0:03:05]} 9. e5 {[%clk 0:02:58]}  Nd7 {[%clk 0:03:05]} 10. Qe2 {[%clk 0:02:58]}  b5 {[%clk 0:03:05]} 11. Nf1 {[%clk 0:02:57]}  Bb7 {[%clk 0:03:05]} 12. Bf4 {[%clk 0:02:56]}  Rfc8 {[%clk 0:03:04]} 13. h4 {[%clk 0:02:56]}  Qd8 {[%clk 0:03:02]} 14. h5 {[%clk 0:02:52]}  h6 {[%clk 0:03:03]} 15. N1h2 {[%clk 0:02:52]}  Qf8 {[%clk 0:03:00]} 16. c4 {[%clk 0:02:51]}  bxc4 {[%clk 0:02:58]} 17. dxc4 {[%clk 0:02:51]}  Nb6 {[%clk 0:02:59]} 18. b3 {[%clk 0:02:48]}  a5 {[%clk 0:02:58]} 19. Ng4 {[%clk 0:02:48]}  a4 {[%clk 0:02:56]} 20. cxd5 {[%clk 0:02:39]}  Nxd5 {[%clk 0:02:55]} 21. Qd2 {[%clk 0:02:36]}  Kh8 {[%clk 0:02:54]} 22. Rad1 {[%clk 0:02:25]}  axb3 {[%clk 0:02:54]} 23. axb3 {[%clk 0:02:24]}  Ra3 {[%clk 0:02:53]} 24. Nfh2 {[%clk 0:02:13]}  Rxb3 {[%clk 0:02:49]} 25. Bxd5 {[%clk 0:02:10]}  exd5 {[%clk 0:02:47]} 26. e6 {[%clk 0:02:10]}  Nd4 {[%clk 0:02:20]} 27. exf7 {[%clk 0:02:00]}  Qxf7 {[%clk 0:02:20]} 28. Bxh6 {[%clk 0:01:58]}  Nf5 {[%clk 0:01:54]} 29. Ne5 {[%clk 0:01:53]}  Qxh5 {[%clk 0:01:51]} 30. g4 {[%clk 0:01:38]}  Qh3 {[%clk 0:01:28]} 31. gxf5 {[%clk 0:01:36]}  d4 {[%clk 0:01:27]} 32. f3 {[%clk 0:01:28]}  gxh6 {[%clk 0:01:15]} 33. Ng6+ {[%clk 0:01:25]}  Kg7 {[%clk 0:01:05]} 34. Rxe7+ {[%clk 0:01:23]}  Kf6 {[%clk 0:01:06]} 35. Re6+ {[%clk 0:01:18]}  Kf7 {[%clk 0:01:04]} 36. Ne5+ {[%clk 0:01:15]}  Kg8 {[%clk 0:01:00]} 37. Qg2+ {[%clk 0:01:13]}  Qxg2+ {[%clk 0:01:00]} 38. Kxg2 {[%clk 0:01:13]}  Ra8 {[%clk 0:00:20]} 39. Nhg4 {[%clk 0:01:10]}  Kg7 {[%clk 0:00:14]} 40. f6+ {[%clk 0:01:06]}  Kf8 {[%clk 0:00:15]} 41. Re7 {[%clk 0:01:04]}  Bxf3+ {[%clk 0:00:13]} 42. Nxf3 {[%clk 0:01:03]}  Ra2+ {[%clk 0:00:13]} 43. Kg3 {[%clk 0:01:02]}  Raa3 {[%clk 0:00:14]} 44. Rf1 {[%clk 0:01:02]}  c4 {[%clk 0:00:11]} 45. Ne5 {[%clk 0:01:02]}  c3 {[%clk 0:00:10]} 46. Ng6+ {[%clk 0:01:02]}  Kg8 {[%clk 0:00:10]} 47. Rg7# {[%clk 0:01:01]} 1-0


[Site "https://www.chess.com"]

[Event "Titled Tuesday Blitz June 28 Early 2022"]
[White "Janaszak, Dawid"]
[Black "Deac, Bogdan-Daniel"]
[WhiteFideId "1119206"]
[BlackFideId "1226380"]
[WhiteElo "2199"]
[BlackElo "2648"]
[Result "0-1"]
[Round "04"]
[TimeControl "180+1"]
[Date "2022.06.28"]
[WhiteClock "0:00:05"]
[BlackClock "0:00:08"]

1. e4 {[%clk 0:03:00]}  c5 {[%clk 0:02:59]} 2. Nc3 {[%clk 0:03:00]}  d6 {[%clk 0:02:57]} 3. f4 {[%clk 0:02:53]}  Nc6 {[%clk 0:02:54]} 4. Nf3 {[%clk 0:02:54]}  e6 {[%clk 0:02:54]} 5. Bb5 {[%clk 0:02:47]}  Ne7 {[%clk 0:02:52]} 6. O-O {[%clk 0:02:47]}  a6 {[%clk 0:02:52]} 7. Bxc6+ {[%clk 0:02:41]}  Nxc6 {[%clk 0:02:53]} 8. d4 {[%clk 0:02:41]}  cxd4 {[%clk 0:02:48]} 9. Nxd4 {[%clk 0:02:41]}  Be7 {[%clk 0:02:48]} 10. Be3 {[%clk 0:02:38]}  O-O {[%clk 0:02:48]} 11. Qf3 {[%clk 0:02:32]}  Bd7 {[%clk 0:02:44]} 12. Rad1 {[%clk 0:02:30]}  b5 {[%clk 0:02:43]} 13. e5 {[%clk 0:02:15]}  Nxd4 {[%clk 0:02:15]} 14. Bxd4 {[%clk 0:02:13]}  dxe5 {[%clk 0:02:14]} 15. Bxe5 {[%clk 0:02:04]}  Qc8 {[%clk 0:02:12]} 16. Ne4 {[%clk 0:01:53]}  Bc6 {[%clk 0:02:04]} 17. Qg3 {[%clk 0:01:28]}  f6 {[%clk 0:02:01]} 18. Nd6 {[%clk 0:01:28]}  Bxd6 {[%clk 0:00:59]} 19. Bxd6 {[%clk 0:01:28]}  Rf7 {[%clk 0:00:59]} 20. Rd2 {[%clk 0:01:18]}  Rd7 {[%clk 0:00:56]} 21. Rfd1 {[%clk 0:01:16]}  Qb7 {[%clk 0:00:46]} 22. Bb4 {[%clk 0:01:09]}  Bd5 {[%clk 0:00:40]} 23. Bc5 {[%clk 0:00:57]}  a5 {[%clk 0:00:38]} 24. a3 {[%clk 0:00:44]}  b4 {[%clk 0:00:33]} 25. Qf2 {[%clk 0:00:40]}  Rc8 {[%clk 0:00:27]} 26. axb4 {[%clk 0:00:35]}  axb4 {[%clk 0:00:28]} 27. Ra1 {[%clk 0:00:30]}  Qb5 {[%clk 0:00:18]} 28. Be3 {[%clk 0:00:24]}  Rdc7 {[%clk 0:00:17]} 29. h4 {[%clk 0:00:20]}  Be4 {[%clk 0:00:17]} 30. h5 {[%clk 0:00:19]}  Qxh5 {[%clk 0:00:15]} 31. Bb6 {[%clk 0:00:19]}  Rxc2 {[%clk 0:00:13]} 32. Rad1 {[%clk 0:00:09]}  Qxd1+ {[%clk 0:00:11]} 33. Rxd1 {[%clk 0:00:08]}  Rxf2 {[%clk 0:00:12]} 34. Kxf2 {[%clk 0:00:09]}  Rc2+ {[%clk 0:00:11]} 35. Ke3 {[%clk 0:00:09]}  Bxg2 {[%clk 0:00:11]} 36. Rd8+ {[%clk 0:00:08]}  Kf7 {[%clk 0:00:11]} 37. Bd4 {[%clk 0:00:09]}  h5 {[%clk 0:00:10]} 38. Rd7+ {[%clk 0:00:09]}  Kg6 {[%clk 0:00:10]} 39. Kd3 {[%clk 0:00:05]}  b3 {[%clk 0:00:09]} 40. Bc3 {[%clk 0:00:05]}  h4 {[%clk 0:00:08]} 41. Kc4 {[%clk 0:00:06]}  Bd5+ {[%clk 0:00:08]} 42. Kd3 {[%clk 0:00:05]}  h3 {[%clk 0:00:07]} 43. Rd8 {[%clk 0:00:05]}  h2 {[%clk 0:00:07]} 44. Rh8 {[%clk 0:00:05]}  h1=Q {[%clk 0:00:08]} 0-1


[Site "https://www.chess.com"]